bitfinex-derivatives/quotes_SOLF0:USTF0_20260110
["timestamp","ask_amount","ask_price","bid_price","bid_amount"]
[1768031191325,0.31032472,136.02,135.98,6.6271]
[1768031191527,5.7172625,136.01,135.98,6.6271]
[1768031191723,0.31032472,136.02,135.98,6.6271]
[1768031192023,5.7172625,136.01,135.98,6.6271]
[1768031192223,0.31032472,136.02,135.98,6.6271]
[1768031192421,5.71726067,136.01,135.98,6.6271]
[1768031192625,0.31032472,136.02,135.98,6.6271]
[1768031192925,5.71726069,136.01,135.98,6.6271]
[1768031193127,0.31451061,136.04,135.98,6.6271]
[1768031193317,5.71802952,136.03,135.98,6.6271]
[1768031193514,5.71802952,136.02,135.98,6.6271]
[1768031193715,5.71802952,136.01,135.98,6.6271]
[1768031193924,0.31451061,136.04,135.98,6.6271]
[1768031194123,5.71873783,136.03,135.98,6.6271]
[1768031194324,5.71873783,136.02,135.98,6.6271]
[1768031194624,5.71873783,136.01,135.98,6.6271]
[1768031194825,0.31451061,136.04,135.98,6.6271]
[1768031195025,5.71935866,136.03,135.98,6.6271]
[1768031195325,5.71935866,136.02,135.98,6.6271]
[1768031195526,5.71935866,136.01,135.98,6.6271]
[1768031195725,0.31451061,136.04,135.98,6.6271]
[1768031195928,5.70570417,136.03,135.98,6.6271]
[1768031196126,5.70570417,136.02,135.98,6.6271]
[1768031196426,5.70570417,136.01,135.98,6.6271]
[1768031196726,0.31451061,136.04,135.98,6.6271]
[1768031196916,5.70569505,136.03,135.98,6.6271]
[1768031197215,5.70569505,136.02,135.98,6.6271]
[1768031197419,5.70569505,136.01,135.98,6.6271]
[1768031197619,0.31451061,136.04,135.98,6.6271]
[1768031197821,5.70568701,136.03,135.98,6.6271]
[1768031198120,5.70568701,136.02,135.98,6.6271]
[1768031198324,5.70568701,136.01,135.98,6.6271]
[1768031198624,0.31451061,136.04,135.98,6.6271]
[1768031198924,5.70567978,136.03,135.98,6.6271]
[1768031199224,5.70567978,136.02,135.98,6.6271]
[1768031199424,5.70567978,136.01,135.98,6.6271]
[1768031199627,0.31451061,136.04,135.98,6.6271]
[1768031199925,5.70567335,136.03,135.98,6.6271]
[1768031200125,5.70567335,136.02,135.98,6.6271]
[1768031200325,5.70567335,136.01,135.98,6.6271]
[1768031200516,0.31451061,136.04,135.98,6.6271]
[1768031200721,5.70566759,136.03,135.98,6.6271]
[1768031200925,5.70566759,136.02,135.98,6.6271]
[1768031201125,5.70566759,136.01,135.98,6.6271]
[1768031201326,0.31451061,136.04,135.98,6.6271]
[1768031201626,5.70566229,136.03,135.98,6.6271]
[1768031201923,5.70566229,136.02,135.98,6.6271]
[1768031202124,5.70566229,136.01,135.98,6.6271]
[1768031202324,0.31451061,136.04,135.98,6.6271]
[1768031202518,5.70565774,136.03,135.98,6.6271]
[1768031202719,5.70565774,136.02,135.98,6.6271]
[1768031202924,5.70565774,136.01,135.98,6.6271]
[1768031203124,0.31451061,136.04,135.98,6.6271]
[1768031203323,5.70545844,136.03,135.98,6.6271]
[1768031203533,5.70545844,136.02,135.98,6.6271]
[1768031203827,5.70545844,136.01,135.98,6.6271]
[1768031204030,0.31451061,136.04,135.98,6.6271]
[1768031204216,5.70505102,136.03,135.98,6.6271]
[1768031204416,5.70505102,136.02,135.98,6.6271]
[1768031204620,5.70505102,136.01,135.98,6.6271]
[1768031204830,0.31451061,136.04,135.98,6.6271]
[1768031205128,5.7050292,136.03,135.98,6.6271]
[1768031205329,5.7050292,136.02,135.98,6.6271]
[1768031205534,5.7050292,136.01,135.98,6.6271]
[1768031205829,0.31451061,136.04,135.98,6.6271]
[1768031206033,5.70502737,136.03,135.98,6.6271]
[1768031206230,5.70502737,136.02,135.98,6.6271]
[1768031206433,5.70502737,136.01,135.98,6.6271]
[1768031206638,0.31451061,136.04,135.98,6.6271]
[1768031206936,5.70502447,136.03,135.98,6.6271]
[1768031207232,5.70502447,136.02,135.98,6.6271]
[1768031207426,5.70502447,136.01,135.98,6.6271]
[1768031207627,0.31451061,136.04,135.98,6.6271]
[1768031207836,6.02005423,136.03,135.98,6.6271]
[1768031208035,5.70502196,136.02,135.98,6.6271]
[1768031208240,5.70502196,136.01,135.98,6.6271]
[1768031208532,0.31503227,136.03,135.98,6.6271]
[1768031208737,5.70501979,136.02,135.98,6.6271]
[1768031208933,5.70501979,136.01,135.98,6.6271]
[1768031209137,0.31503227,136.03,135.98,6.6271]
[1768031209327,5.70521368,136.02,135.98,6.6271]
[1768031209529,5.70521368,136.01,135.98,6.6271]
[1768031209828,0.31503227,136.03,135.98,6.6271]
[1768031210029,5.70521368,136.02,135.98,6.6271]
[1768031210233,5.70521368,136.01,135.98,6.6271]
[1768031210425,0.31503227,136.03,135.98,6.6271]
[1768031210633,5.70521217,136.02,135.98,6.6271]
[1768031210826,5.70521217,136.01,135.98,6.6271]
[1768031211029,0.31503227,136.03,135.98,6.6271]
[1768031211329,5.70521217,136.02,135.98,6.6271]
[1768031211525,5.70521217,136.01,135.98,6.6271]
[1768031211729,0.31503227,136.03,135.98,6.6271]
[1768031211930,5.70521101,136.02,135.98,6.6271]
[1768031212133,5.70521101,136.01,135.98,6.6271]
[1768031212433,0.31503227,136.03,135.98,6.6271]
[1768031212633,5.70521015,136.02,135.98,6.6271]
[1768031212834,5.70521015,136.01,135.98,6.6271]
[1768031213036,0.31503227,136.03,135.98,6.6271]
[1768031213332,5.70521015,136.02,135.98,6.6271]
[1768031213528,5.70521015,136.01,135.98,6.6271]
[1768031213737,0.31503227,136.03,135.98,6.6271]
[1768031213937,5.70520963,136.02,135.98,6.6271]
[1768031214131,5.70520963,136.01,135.98,6.6271]
[1768031214330,0.31503227,136.03,135.98,6.6271]
[1768031214529,5.70520938,136.02,135.98,6.6271]
[1768031214735,5.70520938,136.01,135.98,6.6271]
[1768031214933,0.31503227,136.03,135.98,6.6271]
[1768031215134,5.70520938,136.02,135.98,6.6271]
[1768031215334,5.70520938,136.01,135.98,6.6271]
[1768031215633,0.31503227,136.03,135.98,6.6271]
[1768031215836,5.70520946,136.02,135.98,6.6271]
[1768031216034,5.70520946,136.01,135.98,6.6271]
[1768031216234,0.31503227,136.03,135.98,6.6271]
[1768031216434,5.7052098,136.02,135.98,6.6271]
[1768031216634,5.7052098,136.01,135.98,6.6271]
[1768031216835,0.31503227,136.03,135.98,6.6271]
[1768031217139,5.7052098,136.02,135.98,6.6271]
[1768031217339,5.7052098,136.01,135.98,6.6271]
[1768031217540,0.31503227,136.03,135.98,6.6271]
[1768031217741,5.70521061,136.02,135.98,6.6271]
[1768031217940,5.70521061,136.01,135.98,6.6271]
[1768031218142,0.31503227,136.03,135.98,6.6271]
[1768031218345,5.7052114,136.02,135.98,6.6271]
[1768031218544,5.7052114,136.01,135.98,6.6271]
[1768031218742,0.31503227,136.03,135.98,6.6271]
[1768031218935,5.7052114,136.02,135.98,6.6271]
[1768031219135,5.7052114,136.01,135.98,6.6271]
[1768031219340,0.31503227,136.03,135.98,6.6271]
[1768031219640,5.7052125,136.02,135.98,6.6271]
[1768031219843,5.7052125,136.01,135.98,6.6271]
[1768031220142,0.31503227,136.03,135.98,6.6271]
[1768031220439,5.7052125,136.02,135.98,6.6271]
[1768031220751,5.7052125,136.01,135.98,6.6271]
[1768031221042,0.31503227,136.03,135.98,6.6271]
[1768031221241,5.705222,136.02,135.98,6.6271]
[1768031221444,6.00714353,136.01,135.91,15.06523043]
[1768031221640,6.00714353,136.0,135.92,86.92]
[1768031221842,0.30192153,136.0,135.92,86.92]
[1768031222142,0.30192153,136.0,135.95,6.6285]
[1768031222735,5.70173422,135.99,135.95,6.6285]
[1768031222942,0.30192153,136.0,135.95,6.6285]
[1768031223148,5.70149752,135.99,135.95,6.6285]
[1768031223444,0.30192153,136.0,135.95,6.6285]
[1768031223643,5.69912727,135.99,135.95,6.6285]
[1768031223847,0.30192153,136.0,135.95,6.6285]
[1768031224039,5.69912721,135.99,135.95,6.6285]
[1768031224339,0.30192153,136.0,135.95,6.6285]
[1768031224545,5.69757091,135.99,135.95,6.6285]
[1768031224738,0.30192153,136.0,135.95,6.6285]
[1768031224933,5.69757091,135.99,135.95,6.6285]
[1768031225132,0.30192153,136.0,135.95,6.6285]
[1768031231253,0.30192153,136.0,135.93,6.6292]
[1768031232655,0.30192153,136.0,135.94,6.6291]
[1768031236856,6.6253,136.02,135.94,6.6291]
[1768031237057,5.69409179,136.01,135.94,6.6291]
[1768031237259,5.69409179,136.0,135.94,6.6291]
[1768031237459,6.92626566,136.02,135.94,6.6291]
[1768031237659,5.69400743,136.01,135.94,6.6291]
[1768031237856,5.69400743,136.0,135.94,6.6291]
[1768031238057,6.92626566,136.02,135.94,6.6291]
[1768031238358,5.69519792,136.01,135.94,6.6291]
[1768031238656,5.69519792,136.0,135.94,6.6291]
[1768031238855,6.92626566,136.02,135.94,6.6291]
[1768031239056,5.69463683,136.01,135.94,6.6291]
[1768031239259,5.69463683,136.0,135.94,6.6291]
[1768031239459,6.92626566,136.02,135.94,6.6291]
[1768031239651,5.69448954,136.01,135.94,6.6291]
[1768031239855,5.69448954,136.0,135.94,6.6291]
[1768031240057,6.92626566,136.02,135.94,6.6291]
[1768031240261,5.69498822,136.01,135.94,6.6291]
[1768031240459,5.69498822,136.0,135.94,6.6291]
[1768031240653,6.92626566,136.02,135.94,6.6291]
[1768031240854,5.69487743,136.01,135.94,6.6291]
[1768031241160,5.69487743,136.0,135.94,6.6291]
[1768031241355,6.92626566,136.02,135.94,6.6291]
[1768031241560,5.69479588,136.01,135.94,6.6291]
[1768031241761,5.69479588,136.0,135.94,6.6291]
[1768031241969,6.92626566,136.02,135.94,6.6291]
[1768031242268,5.69479588,136.01,135.94,6.6291]
[1768031242467,5.69479588,136.0,135.94,6.6291]
[1768031242667,6.92626566,136.02,135.94,6.6291]
[1768031242971,5.69474631,136.01,135.94,6.6291]
[1768031243169,5.69474631,136.0,135.94,6.6291]
[1768031243468,6.92626566,136.02,135.94,6.6291]
[1768031243770,5.69482889,136.01,135.94,6.6291]
[1768031243963,5.69482889,136.0,135.94,6.6291]
[1768031244260,6.92626566,136.02,135.94,6.6291]
[1768031244461,5.69484362,136.01,135.94,6.6291]
[1768031244668,5.69484362,136.0,135.94,6.6291]
[1768031244864,6.92626566,136.02,135.94,6.6291]
[1768031245061,5.69484362,136.01,135.94,6.6291]
[1768031245268,5.69484362,136.0,135.94,6.6291]
[1768031245459,0.30096566,136.01,135.94,6.6291]
[1768031245759,5.69488989,136.0,135.94,6.6291]
[1768031245963,0.30096566,136.01,135.94,6.6291]
[1768031246169,5.69488989,136.0,135.94,6.6291]
[1768031246469,0.30096566,136.01,135.94,6.6291]
[1768031246767,5.69494658,136.0,135.94,6.6291]
[1768031246967,0.30096566,136.01,135.94,6.6291]
[1768031247172,5.69494658,136.0,135.94,6.6291]
[1768031247471,0.30096566,136.01,135.94,6.6291]
[1768031247662,5.69505694,136.0,135.94,6.6291]
[1768031247864,0.30096566,136.01,135.94,6.6291]
[1768031248068,5.69495924,136.0,135.94,6.6291]
[1768031248368,0.30096566,136.01,135.94,6.6291]
[1768031248569,5.69539338,136.0,135.94,6.6291]
[1768031248770,0.30096566,136.01,135.94,6.6291]
[1768031248971,5.69539338,136.0,135.94,6.6291]
[1768031249168,0.30096566,136.01,135.94,6.6291]
[1768031249368,5.69549554,136.0,135.94,6.6291]
[1768031249569,0.30096566,136.01,135.94,6.6291]
[1768031249768,5.69557081,136.0,135.94,6.6291]
[1768031249976,0.30096566,136.01,135.94,6.6291]
[1768031250170,5.69557081,136.0,135.94,6.6291]
[1768031250371,0.30096566,136.01,135.94,6.6291]
[1768031250576,5.6957835,136.0,135.94,6.6291]
[1768031250776,0.30096566,136.01,135.94,6.6291]
[1768031250973,5.6957835,136.0,135.94,6.6291]
[1768031251176,0.30096566,136.01,135.94,6.6291]
[1768031251369,5.69594246,136.0,135.94,6.6291]
[1768031251570,0.30096566,136.01,135.94,6.6291]
[1768031251771,5.69603302,136.0,135.94,6.6291]
[1768031251971,0.30096566,136.01,135.94,6.6291]
[1768031252268,5.69603302,136.0,135.94,6.6291]
[1768031252571,0.30096566,136.01,135.94,6.6291]
[1768031252877,5.69632138,136.0,135.94,6.6291]
[1768031253080,0.30096566,136.01,135.94,6.6291]
[1768031253376,5.69632138,136.0,135.94,6.6291]
[1768031253677,0.30096566,136.01,135.94,6.6291]
[1768031253877,5.69665093,136.0,135.94,6.6291]
[1768031254177,0.30096566,136.01,135.94,6.6291]
[1768031254378,5.69715608,136.0,135.94,6.6291]
[1768031254577,0.30096566,136.01,135.94,6.6291]
[1768031254777,5.69699634,136.0,135.94,6.6291]
[1768031254978,0.30096566,136.01,135.94,6.6291]
[1768031255276,5.69699308,136.0,135.94,6.6291]
[1768031255479,0.30096566,136.01,135.94,6.6291]
[1768031255677,5.69745131,136.0,135.94,6.6291]
[1768031255876,0.30096566,136.01,135.94,6.6291]
[1768031256077,5.69582994,136.0,135.94,6.6291]
[1768031256277,0.30096566,136.01,135.94,6.6291]
[1768031256478,5.69634764,136.0,135.94,6.6291]
[1768031256681,0.30096566,136.01,135.94,6.6291]
[1768031256980,5.69634764,136.0,135.94,6.6291]
[1768031257182,0.30096566,136.01,135.94,6.6291]
[1768031257483,5.69666575,136.0,135.94,6.6291]
[1768031257676,0.30096566,136.01,135.94,6.6291]
[1768031257975,5.69678494,136.0,135.94,6.6291]
[1768031258179,0.30096566,136.01,135.94,6.6291]
[1768031258376,5.69726499,136.0,135.94,6.6291]
[1768031258581,0.30096566,136.01,135.94,6.6291]
[1768031258787,5.69700988,136.0,135.94,6.6291]
[1768031258979,0.30096566,136.01,135.94,6.6291]
[1768031259180,5.69662364,136.0,135.94,6.6291]
[1768031259377,0.30947582,136.03,135.95,6.6285]
[1768031259689,0.30947582,136.05,135.93,103.1256]
[1768031259886,0.30947582,136.05,135.92,86.92]
[1768031259887,5.69765633,136.04,135.94,103.1201]
[1768031260086,0.30947582,136.05,135.94,103.1201]
[1768031260275,6.00671759,136.04,135.94,103.1201]
[1768031260478,0.30947582,136.04,135.94,103.1201]
[1768031260677,0.30947582,136.04,135.97,6.6277]
[1768031261582,6.93377582,136.04,135.97,6.6277]
[1768031262582,0.30947582,136.08,135.97,88.74433043]
[1768031262787,5.69463518,136.07,135.97,88.74433043]
[1768031262987,0.30947582,136.08,135.97,88.74433043]
[1768031263192,5.6939684,136.07,135.97,88.74433043]
[1768031263392,0.30947582,136.08,135.97,88.74433043]
[1768031263694,6.6229,136.07,135.99,6.6265]
[1768031264083,6.93237582,136.07,135.99,6.6265]
[1768031269186,6.93237582,136.07,135.97,93.5673]
[1768031269187,0.30947582,136.06,135.97,93.5673]
[1768031269378,0.30947582,136.06,135.97,86.94]
[1768031269583,88.74433043,136.11,135.97,86.94]
[1768031269584,0.30947582,136.05,135.97,86.94]
[1768031270491,6.93337582,136.05,135.97,93.5675]
[1768031276795,0.30947582,136.05,135.97,86.94]
[1768031278687,0.30947582,136.05,135.99,6.6266]
[1768031281493,6.6229,136.07,135.99,6.6266]
[1768031281699,6.93186303,136.07,135.99,6.6266]
[1768031281900,6.93186303,136.07,136.0,6.6261]
[1768031292407,0.30896303,136.07,136.0,6.6261]
[1768031292712,0.30896303,136.07,135.99,103.082]
[1768031293616,0.30896303,136.07,136.02,6.6251]
[1768031295513,0.30896303,136.07,136.0,6.6258]
[1768031296315,0.30896303,136.07,136.01,6.6256]
[1768031298618,0.30896303,136.07,135.99,6.6265]
[1768031299512,0.30514957,136.06,135.99,6.6265]
[1768031303417,0.05312079,136.04,135.99,6.6265]
[1768031303612,0.05312079,136.04,136.01,0.0551048]
[1768031313334,0.30514957,136.06,136.01,0.0551048]
[1768031332341,6.6234,136.06,136.01,0.0551048]
[1768031332547,5.91110327,136.05,136.01,0.0551048]
[1768031332739,0.3107696,136.05,136.01,0.0551048]
[1768031362766,0.3107696,136.05,135.97,86.94]
[1768031363465,0.30449939,136.04,135.97,86.94]
[1768031363770,0.30449939,136.04,135.96,6.6278]
[1768031366166,0.30449939,136.04,135.97,6.6276]
[1768031368872,0.30449939,136.04,135.98,6.6271]
[1768031375378,0.30449939,136.04,135.96,6.6278]
[1768031376581,0.30449939,136.04,135.95,86.9]
[1768031377583,0.30449939,136.04,135.98,6.6271]
[1768031388294,0.30449939,136.04,135.99,6.6266]
[1768031399199,0.30449939,136.04,136.0,6.6261]
[1768031402210,0.30713571,136.07,136.0,6.6261]
[1768031402403,5.90595778,136.06,136.0,6.6261]
[1768031402598,0.30713571,136.06,136.0,6.6261]
[1768031418932,0.30713571,136.06,135.98,6.6267]
[1768031423327,6.93053571,136.06,135.98,6.6267]
[1768031425234,0.30713571,136.06,135.98,6.6267]
[1768031425939,0.30713571,136.06,135.98,7.78100002]
[1768031429239,0.0503626,136.03,136.01,0.05043609]
[1768031478370,0.0503626,136.03,136.01,6.67613609]
[1768031528932,0.31493106,136.07,136.03,6.6245]
[1768031530233,0.31493106,136.07,136.01,6.67573609]
[1768031532938,0.31493106,136.07,136.02,6.6252]
[1768031537227,0.31493106,136.07,136.01,0.05043609]
[1768031539637,0.31493106,136.07,136.01,6.67613609]
[1768031548542,0.31493106,136.07,136.02,6.6248]
[1768031548743,0.3150428,136.1,136.01,1.20421478]
[1768031548944,5.8704526,136.09,136.01,1.20421478]
[1768031549144,0.3150428,136.09,136.01,1.15377869]
[1768031549547,0.3150428,136.09,136.04,0.05486808]
[1768031555057,0.32416422,136.07,135.98,1.15377869]
[1768031555545,0.32416422,136.07,135.97,86.88]
[1768031555546,0.32416422,136.05,135.97,93.5073]
[1768031556650,0.32416422,136.04,135.97,93.5073]
[1768031581168,6.624,136.05,135.97,93.5073]
[1768031581369,6.94829295,136.05,135.97,93.5073]
[1768031583381,0.32429295,136.05,135.97,93.5073]
[1768031583583,0.32429295,136.05,135.98,6.6271]
[1768031586081,0.32429295,136.05,135.99,6.6266]
[1768031590581,0.304741,136.07,135.99,6.6266]
[1768031591580,6.927641,136.07,135.99,6.6266]
[1768031599988,0.304741,136.07,136.0,6.6261]
[1768031602985,0.304741,136.07,136.01,6.6257]
[1768031606193,6.6224,136.08,136.01,6.6257]
[1768031606690,6.927141,136.08,136.01,6.6257]
[1768031607394,0.304741,136.08,136.02,6.625]
[1768031610093,6.926541,136.1,136.03,6.6246]
[1768031610296,5.5931404,136.09,136.03,6.6246]
[1768031610598,0.304741,136.09,136.03,6.6246]
[1768031651254,5.591457,136.08,136.03,6.6246]
[1768031651444,0.304741,136.09,136.03,6.6246]
[1768031651639,5.59149974,136.08,136.03,6.6246]
[1768031651843,0.304741,136.09,136.03,6.6246]
[1768031652143,5.59149974,136.08,136.03,6.6246]
[1768031652339,0.304741,136.09,136.03,6.6246]
[1768031652539,5.59276984,136.08,136.03,6.6246]
[1768031652750,0.304741,136.09,136.03,6.6246]
[1768031652958,5.59276984,136.08,136.03,6.6246]
[1768031653250,0.304741,136.09,136.03,6.6246]
[1768031653452,5.59306581,136.08,136.03,6.6246]
[1768031653656,0.304741,136.09,136.03,6.6246]
[1768031653955,5.59308313,136.08,136.03,6.6246]
[1768031654145,0.304741,136.09,136.03,6.6246]
[1768031654345,5.59348774,136.08,136.03,6.6246]
[1768031654546,0.304741,136.09,136.03,6.6246]
[1768031654745,5.59350074,136.08,136.03,6.6246]
[1768031654945,0.304741,136.09,136.03,6.6246]
[1768031655144,5.59349753,136.08,136.03,6.6246]
[1768031655349,0.304741,136.09,136.03,6.6246]
[1768031655549,5.59423775,136.08,136.03,6.6246]
[1768031655850,0.304741,136.09,136.03,6.6246]
[1768031656045,5.59423775,136.08,136.03,6.6246]
[1768031656251,0.304741,136.09,136.03,6.6246]
[1768031656453,5.59426919,136.08,136.03,6.6246]
[1768031656654,0.304741,136.09,136.03,6.6246]
[1768031656847,5.59426919,136.08,136.03,6.6246]
[1768031657057,0.304741,136.09,136.03,6.6246]
[1768031657353,5.59430294,136.08,136.03,6.6246]
[1768031657553,0.304741,136.09,136.03,6.6246]
[1768031657755,5.59430614,136.08,136.03,6.6246]
[1768031657955,0.304741,136.09,136.03,6.6246]
[1768031658156,5.59430614,136.08,136.03,6.6246]
[1768031658355,0.304741,136.09,136.03,6.6246]
[1768031658562,5.59435013,136.08,136.03,6.6246]
[1768031658756,0.304741,136.09,136.03,6.6246]
[1768031658958,5.59435013,136.08,136.03,6.6246]
[1768031659154,0.304741,136.09,136.03,6.6246]
[1768031659355,5.59440139,136.08,136.03,6.6246]
[1768031659648,0.304741,136.09,136.03,6.6246]
[1768031659850,5.59440404,136.08,136.03,6.6246]
[1768031660162,0.304741,136.09,136.03,6.6246]
[1768031660362,5.59440141,136.08,136.03,6.6246]
[1768031660560,0.304741,136.09,136.03,6.6246]
[1768031660761,5.59440406,136.08,136.03,6.6246]
[1768031660961,0.304741,136.09,136.03,6.6246]
[1768031661261,5.59440406,136.08,136.03,6.6246]
[1768031661463,0.304741,136.09,136.03,6.6246]
[1768031661663,5.59441393,136.08,136.03,6.6246]
[1768031661857,0.304741,136.09,136.03,6.6246]
[1768031662055,5.59403411,136.08,136.03,6.6246]
[1768031662258,0.304741,136.09,136.03,6.6246]
[1768031662456,5.59404256,136.08,136.03,6.6246]
[1768031662663,0.304741,136.09,136.03,6.6246]
[1768031662961,5.5940454,136.08,136.03,6.6246]
[1768031663163,0.304741,136.09,136.03,6.6246]
[1768031663358,5.59405539,136.08,136.03,6.6246]
[1768031663560,0.304741,136.09,136.03,6.6246]
[1768031663761,5.59405831,136.08,136.03,6.6246]
[1768031663955,0.304741,136.09,136.03,6.6246]
[1768031664158,5.59405831,136.08,136.03,6.6246]
[1768031664357,0.304741,136.09,136.03,6.6246]
[1768031664656,5.594073,136.08,136.03,6.6246]
[1768031664952,0.304741,136.09,136.03,6.6246]
[1768031665150,5.594073,136.08,136.03,6.6246]
[1768031665363,0.304741,136.09,136.03,6.6246]
[1768031665557,5.59408978,136.08,136.03,6.6246]
[1768031665757,0.304741,136.09,136.03,6.6246]
[1768031665952,5.59408978,136.08,136.03,6.6246]
[1768031666154,0.304741,136.09,136.03,6.6246]
[1768031666355,5.59408695,136.08,136.03,6.6246]
[1768031666554,0.304741,136.09,136.03,6.6246]
[1768031666858,5.59408979,136.08,136.03,6.6246]
[1768031667056,0.304741,136.09,136.03,6.6246]
[1768031667253,5.59408686,136.08,136.03,6.6246]
[1768031667468,0.304741,136.09,136.03,6.6246]
[1768031667668,5.59408973,136.08,136.03,6.6246]
[1768031667864,0.304741,136.09,136.03,6.6246]
[1768031668069,5.59408973,136.08,136.03,6.6246]
[1768031668365,0.304741,136.09,136.03,6.6246]
[1768031668565,5.59408967,136.08,136.03,6.6246]
[1768031668763,0.304741,136.09,136.03,6.6246]
[1768031668964,5.59408967,136.08,136.03,6.6246]
[1768031669164,0.304741,136.09,136.03,6.6246]
[1768031669365,5.59408674,136.08,136.03,6.6246]
[1768031669568,0.304741,136.09,136.03,6.6246]
[1768031669770,5.5940896,136.08,136.03,6.6246]
[1768031670067,0.304741,136.09,136.03,6.6246]
[1768031670268,5.5940896,136.08,136.03,6.6246]
[1768031670566,0.304741,136.09,136.03,6.6246]
[1768031670767,5.59408954,136.08,136.03,6.6246]
[1768031670967,0.304741,136.09,136.03,6.6246]
[1768031671167,5.59408954,136.08,136.03,6.6246]
[1768031671369,0.304741,136.09,136.03,6.6246]
[1768031671570,5.59408948,136.08,136.03,6.6246]
[1768031671769,0.304741,136.09,136.03,6.6246]
[1768031671970,5.59408948,136.08,136.03,6.6246]
[1768031672270,0.304741,136.09,136.03,6.6246]
[1768031672470,5.59410926,136.08,136.03,6.6246]
[1768031672670,0.304741,136.09,136.03,6.6246]
[1768031672872,5.59410928,136.08,136.03,6.6246]
[1768031673170,0.304741,136.09,136.03,6.6246]
[1768031673368,5.59412974,136.08,136.03,6.6246]
[1768031673569,0.304741,136.09,136.03,6.6246]
[1768031673869,5.59413236,136.08,136.03,6.6246]
[1768031674168,0.304741,136.09,136.03,6.6246]
[1768031674369,5.59415747,136.08,136.03,6.6246]
[1768031674569,0.304741,136.09,136.03,6.6246]
[1768031674770,5.59415984,136.08,136.03,6.6246]
[1768031674963,0.304741,136.09,136.03,6.6246]
[1768031675164,5.59415984,136.08,136.03,6.6246]
[1768031675366,0.304741,136.09,136.03,6.6246]
[1768031675564,5.59419401,136.08,136.03,6.6246]
[1768031675864,0.304741,136.09,136.03,6.6246]
[1768031676059,5.59419401,136.08,136.03,6.6246]
[1768031676264,0.304741,136.09,136.03,6.6246]
[1768031676469,5.60620596,136.08,136.03,6.6246]
[1768031676666,0.304741,136.09,136.03,6.6246]
[1768031676871,5.60620596,136.08,136.03,6.6246]
[1768031677058,0.304741,136.09,136.03,6.6246]
[1768031677265,5.60620596,136.08,136.03,6.6246]
[1768031677471,0.304741,136.09,136.03,6.6246]
[1768031677673,5.60631943,136.08,136.03,6.6246]
[1768031677860,0.304741,136.09,136.03,6.6246]
[1768031678160,5.60631943,136.08,136.03,6.6246]
[1768031678363,0.304741,136.09,136.03,6.6246]
[1768031678562,5.60632039,136.08,136.03,6.6246]
[1768031678768,0.304741,136.09,136.03,6.6246]
[1768031679161,5.60632039,136.08,136.03,6.6246]
[1768031679362,0.304741,136.09,136.03,6.6246]
[1768031679564,5.60655459,136.08,136.03,6.6246]
[1768031679771,0.304741,136.09,136.03,6.6246]
[1768031679969,5.60655459,136.08,136.03,6.6246]
[1768031680171,0.304741,136.09,136.03,6.6246]
[1768031680374,5.6065539,136.08,136.03,6.6246]
[1768031680566,0.304741,136.09,136.03,6.6246]
[1768031680768,5.60580288,136.08,136.03,6.6246]
[1768031680964,0.304741,136.09,136.03,6.6246]
[1768031681164,5.60580288,136.08,136.03,6.6246]
[1768031681366,0.304741,136.09,136.03,6.6246]
[1768031681576,5.60550398,136.08,136.03,6.6246]
[1768031681775,0.304741,136.09,136.03,6.6246]
[1768031681974,5.60550577,136.08,136.03,6.6246]
[1768031682175,0.304741,136.09,136.03,6.6246]
[1768031682375,5.60549273,136.08,136.03,6.6246]
[1768031682575,0.304741,136.09,136.03,6.6246]
[1768031682875,5.60528405,136.08,136.03,6.6246]
[1768031683080,0.304741,136.09,136.03,6.6246]
[1768031683271,5.60526876,136.08,136.03,6.6246]
[1768031683567,0.304741,136.09,136.03,6.6246]
[1768031692687,6.6214,136.1,136.03,6.6246]
[1768031692885,5.60414658,136.09,136.03,6.6246]
[1768031693085,6.6214,136.1,136.03,6.6246]
[1768031693286,5.60414658,136.09,136.03,6.6246]
[1768031693584,6.93763244,136.1,136.03,6.6246]
[1768031693786,5.60411194,136.09,136.03,6.6246]
[1768031693989,6.93763244,136.1,136.03,6.6246]
[1768031694189,5.60411194,136.09,136.03,6.6246]